Workbook

Sheet Buchungen
A1: Einnahmen & Ausgaben – Buchungen
A3: Jahr | B3: 2026 | D3: Startsaldo | E3: € 1,000.00 | J3: Kategorien
A4: (für Auswertung) | D4: (optional) | J4: Umsatz/Verkauf
J5: Dienstleistungen
A6: Datum | B6: Beschreibung | C6: Kategorie | D6: Typ | E6: Einnahmen (€) | F6: Ausgaben (€) | G6: Netto | H6: Saldo laufend | J6: Sonstiges Einkommen
A7: 2026-01-03 | B7: Rechnung #1001 – Webdesign | C7: Dienstleistungen | D7: Einnahme | E7: € 1,800.00 | G7: =IF($A7="","",IF($E7="",0,$E7)-IF($F7="",0,$F7)) -> € 1,800.00 | H7: =IF($A7="","",$E$3+SUM($G$7:$G7)) -> € 2,800.00 | J7: Miete
A8: 2026-01-05 | B8: Büromiete Januar | C8: Miete | D8: Ausgabe | F8: € 650.00 | G8: -€ 650.00 | H8: =IF($A8="","",$E$3+SUM($G$7:$G8)) -> € 2,150.00 | J8: Versicherungen
A9: 2026-01-08 | B9: Adobe Creative Cloud | C9: Software/Abos | D9: Ausgabe | F9: € 65.99 | G9: -€ 65.99 | H9: =IF($A9="","",$E$3+SUM($G$7:$G9)) -> € 2,084.01 | J9: Bürobedarf
A10: 2026-01-12 | B10: Hosting & Domain | C10: Software/Abos | D10: Ausgabe | F10: € 18.00 | G10: -€ 18.00 | H10: =IF($A10="","",$E$3+SUM($G$7:$G10)) -> € 2,066.01 | J10: Marketing
A11: 2026-01-15 | B11: Umsatz – Online-Shop | C11: Umsatz/Verkauf | D11: Einnahme | E11: € 950.50 | G11: € 950.50 | H11: =IF($A11="","",$E$3+SUM($G$7:$G11)) -> € 3,016.51 | J11: Software/Abos
A12: 2026-01-20 | B12: Krankenversicherung | C12: Versicherungen | D12: Ausgabe | F12: € 320.00 | G12: -€ 320.00 | H12: =IF($A12="","",$E$3+SUM($G$7:$G12)) -> € 2,696.51 | J12: Reisekosten
A13: 2026-01-28 | B13: Bankgebühren | C13: Bankgebühren | D13: Ausgabe | F13: € 12.50 | G13: -€ 12.50 | H13: =IF($A13="","",$E$3+SUM($G$7:$G13)) -> € 2,684.01 | J13: Steuern
A14: 2026-02-02 | B14: Rechnung #1002 – Beratung | C14: Dienstleistungen | D14: Einnahme | E14: € 1,200.00 | G14: € 1,200.00 | H14: =IF($A14="","",$E$3+SUM($G$7:$G14)) -> € 3,884.01 | J14: Bankgebühren
A15: 2026-02-04 | B15: Büromiete Februar | C15: Miete | D15: Ausgabe | F15: € 650.00 | G15: -€ 650.00 | H15: =IF($A15="","",$E$3+SUM($G$7:$G15)) -> € 3,234.01 | J15: Sonstige Ausgaben
A16: 2026-02-07 | B16: Google Ads Kampagne | C16: Marketing | D16: Ausgabe | F16: € 150.00 | G16: -€ 150.00 | H16: =IF($A16="","",$E$3+SUM($G$7:$G16)) -> € 3,084.01
A17: 2026-02-09 | B17: Bürobedarf (Papier, Toner) | C17: Bürobedarf | D17: Ausgabe | F17: € 48.70 | G17: -€ 48.70 | H17: =IF($A17="","",$E$3+SUM($G$7:$G17)) -> € 3,035.31
A18: 2026-02-14 | B18: Umsatz – Online-Shop | C18: Umsatz/Verkauf | D18: Einnahme | E18: € 780.00 | G18: € 780.00 | H18: =IF($A18="","",$E$3+SUM($G$7:$G18)) -> € 3,815.31
A19: 2026-02-18 | B19: Reisekosten – Kundentermin | C19: Reisekosten | D19: Ausgabe | F19: € 89.40 | G19: -€ 89.40 | H19: =IF($A19="","",$E$3+SUM($G$7:$G19)) -> € 3,725.91
A20: 2026-03-01 | B20: Rechnung #1003 – Wartung | C20: Dienstleistungen | D20: Einnahme | E20: € 600.00 | G20: € 600.00 | H20: =IF($A20="","",$E$3+SUM($G$7:$G20)) -> € 4,325.91
A21: 2026-03-05 | B21: Büromiete März | C21: Miete | D21: Ausgabe | F21: € 650.00 | G21: -€ 650.00 | H21: =IF($A21="","",$E$3+SUM($G$7:$G21)) -> € 3,675.91
A22: 2026-03-10 | B22: Steuervorauszahlung | C22: Steuern | D22: Ausgabe | F22: € 400.00 | G22: -€ 400.00 | H22: =IF($A22="","",$E$3+SUM($G$7:$G22)) -> € 3,275.91
A23: 2026-03-12 | B23: Umsatz – Online-Shop | C23: Umsatz/Verkauf | D23: Einnahme | E23: € 1,050.00 | G23: € 1,050.00 | H23: =IF($A23="","",$E$3+SUM($G$7:$G23)) -> € 4,325.91
A24: 2026-04-02 | B24: Rechnung #1004 – Logo Paket | C24: Dienstleistungen | D24: Einnahme | E24: € 900.00 | G24: € 900.00 | H24: =IF($A24="","",$E$3+SUM($G$7:$G24)) -> € 5,225.91
A25: 2026-04-05 | B25: Büromiete April | C25: Miete | D25: Ausgabe | F25: € 650.00 | G25: -€ 650.00 | H25: =IF($A25="","",$E$3+SUM($G$7:$G25)) -> € 4,575.91
A26: 2026-04-09 | B26: Software-Abo Projektmanagement | C26: Software/Abos | D26: Ausgabe | F26: € 29.00 | G26: -€ 29.00 | H26: =IF($A26="","",$E$3+SUM($G$7:$G26)) -> € 4,546.91
A27: 2026-05-02 | B27: Rechnung #1005 – Workshop | C27: Dienstleistungen | D27: Einnahme | E27: € 1,500.00 | G27: € 1,500.00 | H27: =IF($A27="","",$E$3+SUM($G$7:$G27)) -> € 6,046.91 | J27: Hinweis: Kategorien-Liste ist frei editierbar.
A28: 2026-05-05 | B28: Büromiete Mai | C28: Miete | D28: Ausgabe | F28: € 650.00 | G28: -€ 650.00 | H28: =IF($A28="","",$E$3+SUM($G$7:$G28)) -> € 5,396.91
A29: 2026-05-20 | B29: Marketing – Newsletter Tool | C29: Marketing | D29: Ausgabe | F29: € 25.00 | G29: -€ 25.00 | H29: =IF($A29="","",$E$3+SUM($G$7:$G29)) -> € 5,371.91
A30: 2026-06-03 | B30: Umsatz – Online-Shop | C30: Umsatz/Verkauf | D30: Einnahme | E30: € 1,300.00 | G30: € 1,300.00 | H30: =IF($A30="","",$E$3+SUM($G$7:$G30)) -> € 6,671.91
A31: 2026-06-05 | B31: Büromiete Juni | C31: Miete | D31: Ausgabe | F31: € 650.00 | G31: -€ 650.00 | H31: =IF($A31="","",$E$3+SUM($G$7:$G31)) -> € 6,021.91
H32: =IF($A32="","",$E$3+SUM($G$7:$G32)) -> 
H33: =IF($A33="","",$E$3+SUM($G$7:$G33)) -> 
H34: =IF($A34="","",$E$3+SUM($G$7:$G34)) -> 
H35: =IF($A35="","",$E$3+SUM($G$7:$G35)) -> 
H36: =IF($A36="","",$E$3+SUM($G$7:$G36)) -> 
H37: =IF($A37="","",$E$3+SUM($G$7:$G37)) -> 
H38: =IF($A38="","",$E$3+SUM($G$7:$G38)) -> 
G39: =IF($A39="","",IF($E39="",0,$E39)-IF($F39="",0,$F39)) ->  | H39: =IF($A39="","",$E$3+SUM($G$7:$G39)) -> 
H40: =IF($A40="","",$E$3+SUM($G$7:$G40)) -> 
H41: =IF($A41="","",$E$3+SUM($G$7:$G41)) -> 
H42: =IF($A42="","",$E$3+SUM($G$7:$G42)) -> 
H43: =IF($A43="","",$E$3+SUM($G$7:$G43)) -> 
H44: =IF($A44="","",$E$3+SUM($G$7:$G44)) -> 
H45: =IF($A45="","",$E$3+SUM($G$7:$G45)) -> 
H46: =IF($A46="","",$E$3+SUM($G$7:$G46)) -> 
H47: =IF($A47="","",$E$3+SUM($G$7:$G47)) -> 
H48: =IF($A48="","",$E$3+SUM($G$7:$G48)) -> 
H49: =IF($A49="","",$E$3+SUM($G$7:$G49)) -> 
H50: =IF($A50="","",$E$3+SUM($G$7:$G50)) -> 
H51: =IF($A51="","",$E$3+SUM($G$7:$G51)) -> 
H52: =IF($A52="","",$E$3+SUM($G$7:$G52)) -> 
H53: =IF($A53="","",$E$3+SUM($G$7:$G53)) -> 
H54: =IF($A54="","",$E$3+SUM($G$7:$G54)) -> 
H55: =IF($A55="","",$E$3+SUM($G$7:$G55)) -> 
H56: =IF($A56="","",$E$3+SUM($G$7:$G56)) -> 
H57: =IF($A57="","",$E$3+SUM($G$7:$G57)) -> 
H58: =IF($A58="","",$E$3+SUM($G$7:$G58)) -> 
H59: =IF($A59="","",$E$3+SUM($G$7:$G59)) -> 
H60: =IF($A60="","",$E$3+SUM($G$7:$G60)) -> 
H61: =IF($A61="","",$E$3+SUM($G$7:$G61)) -> 
H62: =IF($A62="","",$E$3+SUM($G$7:$G62)) -> 
H63: =IF($A63="","",$E$3+SUM($G$7:$G63)) -> 
H64: =IF($A64="","",$E$3+SUM($G$7:$G64)) -> 
H65: =IF($A65="","",$E$3+SUM($G$7:$G65)) -> 
H66: =IF($A66="","",$E$3+SUM($G$7:$G66)) -> 
H67: =IF($A67="","",$E$3+SUM($G$7:$G67)) -> 
H68: =IF($A68="","",$E$3+SUM($G$7:$G68)) -> 
H69: =IF($A69="","",$E$3+SUM($G$7:$G69)) -> 
H70: =IF($A70="","",$E$3+SUM($G$7:$G70)) -> 
G71: =IF($A71="","",IF($E71="",0,$E71)-IF($F71="",0,$F71)) ->  | H71: =IF($A71="","",$E$3+SUM($G$7:$G71)) -> 
H72: =IF($A72="","",$E$3+SUM($G$7:$G72)) -> 
H73: =IF($A73="","",$E$3+SUM($G$7:$G73)) -> 
H74: =IF($A74="","",$E$3+SUM($G$7:$G74)) -> 
H75: =IF($A75="","",$E$3+SUM($G$7:$G75)) -> 
H76: =IF($A76="","",$E$3+SUM($G$7:$G76)) -> 
H77: =IF($A77="","",$E$3+SUM($G$7:$G77)) -> 
H78: =IF($A78="","",$E$3+SUM($G$7:$G78)) -> 
H79: =IF($A79="","",$E$3+SUM($G$7:$G79)) -> 
H80: =IF($A80="","",$E$3+SUM($G$7:$G80)) -> 
H81: =IF($A81="","",$E$3+SUM($G$7:$G81)) -> 
H82: =IF($A82="","",$E$3+SUM($G$7:$G82)) -> 
H83: =IF($A83="","",$E$3+SUM($G$7:$G83)) -> 
H84: =IF($A84="","",$E$3+SUM($G$7:$G84)) -> 
H85: =IF($A85="","",$E$3+SUM($G$7:$G85)) -> 
H86: =IF($A86="","",$E$3+SUM($G$7:$G86)) -> 
H87: =IF($A87="","",$E$3+SUM($G$7:$G87)) -> 
H88: =IF($A88="","",$E$3+SUM($G$7:$G88)) -> 
H89: =IF($A89="","",$E$3+SUM($G$7:$G89)) -> 
H90: =IF($A90="","",$E$3+SUM($G$7:$G90)) -> 
H91: =IF($A91="","",$E$3+SUM($G$7:$G91)) -> 
H92: =IF($A92="","",$E$3+SUM($G$7:$G92)) -> 
H93: =IF($A93="","",$E$3+SUM($G$7:$G93)) -> 
H94: =IF($A94="","",$E$3+SUM($G$7:$G94)) -> 
H95: =IF($A95="","",$E$3+SUM($G$7:$G95)) -> 
H96: =IF($A96="","",$E$3+SUM($G$7:$G96)) -> 
H97: =IF($A97="","",$E$3+SUM($G$7:$G97)) -> 
H98: =IF($A98="","",$E$3+SUM($G$7:$G98)) -> 
H99: =IF($A99="","",$E$3+SUM($G$7:$G99)) -> 
H100: =IF($A100="","",$E$3+SUM($G$7:$G100)) -> 
H101: =IF($A101="","",$E$3+SUM($G$7:$G101)) -> 
H102: =IF($A102="","",$E$3+SUM($G$7:$G102)) -> 
G103: =IF($A103="","",IF($E103="",0,$E103)-IF($F103="",0,$F103)) ->  | H103: =IF($A103="","",$E$3+SUM($G$7:$G103)) -> 
H104: =IF($A104="","",$E$3+SUM($G$7:$G104)) -> 
H105: =IF($A105="","",$E$3+SUM($G$7:$G105)) -> 
H106: =IF($A106="","",$E$3+SUM($G$7:$G106)) -> 
H107: =IF($A107="","",$E$3+SUM($G$7:$G107)) -> 
H108: =IF($A108="","",$E$3+SUM($G$7:$G108)) -> 
H109: =IF($A109="","",$E$3+SUM($G$7:$G109)) -> 
H110: =IF($A110="","",$E$3+SUM($G$7:$G110)) -> 
H111: =IF($A111="","",$E$3+SUM($G$7:$G111)) -> 
H112: =IF($A112="","",$E$3+SUM($G$7:$G112)) -> 
H113: =IF($A113="","",$E$3+SUM($G$7:$G113)) -> 
H114: =IF($A114="","",$E$3+SUM($G$7:$G114)) -> 
H115: =IF($A115="","",$E$3+SUM($G$7:$G115)) -> 
H116: =IF($A116="","",$E$3+SUM($G$7:$G116)) -> 
H117: =IF($A117="","",$E$3+SUM($G$7:$G117)) -> 
H118: =IF($A118="","",$E$3+SUM($G$7:$G118)) -> 
H119: =IF($A119="","",$E$3+SUM($G$7:$G119)) -> 
H120: =IF($A120="","",$E$3+SUM($G$7:$G120)) -> 
H121: =IF($A121="","",$E$3+SUM($G$7:$G121)) -> 
H122: =IF($A122="","",$E$3+SUM($G$7:$G122)) -> 
H123: =IF($A123="","",$E$3+SUM($G$7:$G123)) -> 
H124: =IF($A124="","",$E$3+SUM($G$7:$G124)) -> 
H125: =IF($A125="","",$E$3+SUM($G$7:$G125)) -> 
H126: =IF($A126="","",$E$3+SUM($G$7:$G126)) -> 
H127: =IF($A127="","",$E$3+SUM($G$7:$G127)) -> 
H128: =IF($A128="","",$E$3+SUM($G$7:$G128)) -> 
H129: =IF($A129="","",$E$3+SUM($G$7:$G129)) -> 
H130: =IF($A130="","",$E$3+SUM($G$7:$G130)) -> 
H131: =IF($A131="","",$E$3+SUM($G$7:$G131)) -> 
H132: =IF($A132="","",$E$3+SUM($G$7:$G132)) -> 
H133: =IF($A133="","",$E$3+SUM($G$7:$G133)) -> 
H134: =IF($A134="","",$E$3+SUM($G$7:$G134)) -> 
G135: =IF($A135="","",IF($E135="",0,$E135)-IF($F135="",0,$F135)) ->  | H135: =IF($A135="","",$E$3+SUM($G$7:$G135)) -> 
H136: =IF($A136="","",$E$3+SUM($G$7:$G136)) -> 
H137: =IF($A137="","",$E$3+SUM($G$7:$G137)) -> 
H138: =IF($A138="","",$E$3+SUM($G$7:$G138)) -> 
H139: =IF($A139="","",$E$3+SUM($G$7:$G139)) -> 
H140: =IF($A140="","",$E$3+SUM($G$7:$G140)) -> 
H141: =IF($A141="","",$E$3+SUM($G$7:$G141)) -> 
H142: =IF($A142="","",$E$3+SUM($G$7:$G142)) -> 
H143: =IF($A143="","",$E$3+SUM($G$7:$G143)) -> 
H144: =IF($A144="","",$E$3+SUM($G$7:$G144)) -> 
H145: =IF($A145="","",$E$3+SUM($G$7:$G145)) -> 
H146: =IF($A146="","",$E$3+SUM($G$7:$G146)) -> 
H147: =IF($A147="","",$E$3+SUM($G$7:$G147)) -> 
H148: =IF($A148="","",$E$3+SUM($G$7:$G148)) -> 
H149: =IF($A149="","",$E$3+SUM($G$7:$G149)) -> 
H150: =IF($A150="","",$E$3+SUM($G$7:$G150)) -> 

Sheet Monatsübersicht
A1: Monatsübersicht – Einnahmen / Ausgaben / Saldo
A3: Jahr | B3: =Buchungen!$B$3 -> 2026
A6: Monat | B6: Einnahmen (€) | C6: Ausgaben (€) | D6: Saldo (€)
A7: Januar | B7: =SUMIFS(Buchungen!$E$7:$E$150,Buchungen!$A$7:$A$150,">="&DATE($B$3,1,1),Buchungen!$A$7:$A$150,"<"&EDATE(DATE($B$3,1,1),1)) -> € 2,750.50 | C7: =SUMIFS(Buchungen!$F$7:$F$150,Buchungen!$A$7:$A$150,">="&DATE($B$3,1,1),Buchungen!$A$7:$A$150,"<"&EDATE(DATE($B$3,1,1),1)) -> € 1,066.49 | D7: =B7-C7 -> € 1,684.01
A8: Februar | B8: =SUMIFS(Buchungen!$E$7:$E$150,Buchungen!$A$7:$A$150,">="&DATE($B$3,2,1),Buchungen!$A$7:$A$150,"<"&EDATE(DATE($B$3,2,1),1)) -> € 1,980.00 | C8: =SUMIFS(Buchungen!$F$7:$F$150,Buchungen!$A$7:$A$150,">="&DATE($B$3,2,1),Buchungen!$A$7:$A$150,"<"&EDATE(DATE($B$3,2,1),1)) -> € 938.10 | D8: € 1,041.90
A9: März | B9: =SUMIFS(Buchungen!$E$7:$E$150,Buchungen!$A$7:$A$150,">="&DATE($B$3,3,1),Buchungen!$A$7:$A$150,"<"&EDATE(DATE($B$3,3,1),1)) -> € 1,650.00 | C9: =SUMIFS(Buchungen!$F$7:$F$150,Buchungen!$A$7:$A$150,">="&DATE($B$3,3,1),Buchungen!$A$7:$A$150,"<"&EDATE(DATE($B$3,3,1),1)) -> € 1,050.00 | D9: € 600.00
A10: April | B10: =SUMIFS(Buchungen!$E$7:$E$150,Buchungen!$A$7:$A$150,">="&DATE($B$3,4,1),Buchungen!$A$7:$A$150,"<"&EDATE(DATE($B$3,4,1),1)) -> € 900.00 | C10: =SUMIFS(Buchungen!$F$7:$F$150,Buchungen!$A$7:$A$150,">="&DATE($B$3,4,1),Buchungen!$A$7:$A$150,"<"&EDATE(DATE($B$3,4,1),1)) -> € 679.00 | D10: € 221.00
A11: Mai | B11: =SUMIFS(Buchungen!$E$7:$E$150,Buchungen!$A$7:$A$150,">="&DATE($B$3,5,1),Buchungen!$A$7:$A$150,"<"&EDATE(DATE($B$3,5,1),1)) -> € 1,500.00 | C11: =SUMIFS(Buchungen!$F$7:$F$150,Buchungen!$A$7:$A$150,">="&DATE($B$3,5,1),Buchungen!$A$7:$A$150,"<"&EDATE(DATE($B$3,5,1),1)) -> € 675.00 | D11: € 825.00
A12: Juni | B12: =SUMIFS(Buchungen!$E$7:$E$150,Buchungen!$A$7:$A$150,">="&DATE($B$3,6,1),Buchungen!$A$7:$A$150,"<"&EDATE(DATE($B$3,6,1),1)) -> € 1,300.00 | C12: =SUMIFS(Buchungen!$F$7:$F$150,Buchungen!$A$7:$A$150,">="&DATE($B$3,6,1),Buchungen!$A$7:$A$150,"<"&EDATE(DATE($B$3,6,1),1)) -> € 650.00 | D12: € 650.00
A13: Juli | B13: =SUMIFS(Buchungen!$E$7:$E$150,Buchungen!$A$7:$A$150,">="&DATE($B$3,7,1),Buchungen!$A$7:$A$150,"<"&EDATE(DATE($B$3,7,1),1)) -> € 0.00 | C13: =SUMIFS(Buchungen!$F$7:$F$150,Buchungen!$A$7:$A$150,">="&DATE($B$3,7,1),Buchungen!$A$7:$A$150,"<"&EDATE(DATE($B$3,7,1),1)) -> € 0.00 | D13: € 0.00
A14: August | B14: =SUMIFS(Buchungen!$E$7:$E$150,Buchungen!$A$7:$A$150,">="&DATE($B$3,8,1),Buchungen!$A$7:$A$150,"<"&EDATE(DATE($B$3,8,1),1)) -> € 0.00 | C14: =SUMIFS(Buchungen!$F$7:$F$150,Buchungen!$A$7:$A$150,">="&DATE($B$3,8,1),Buchungen!$A$7:$A$150,"<"&EDATE(DATE($B$3,8,1),1)) -> € 0.00 | D14: € 0.00
A15: September | B15: =SUMIFS(Buchungen!$E$7:$E$150,Buchungen!$A$7:$A$150,">="&DATE($B$3,9,1),Buchungen!$A$7:$A$150,"<"&EDATE(DATE($B$3,9,1),1)) -> € 0.00 | C15: =SUMIFS(Buchungen!$F$7:$F$150,Buchungen!$A$7:$A$150,">="&DATE($B$3,9,1),Buchungen!$A$7:$A$150,"<"&EDATE(DATE($B$3,9,1),1)) -> € 0.00 | D15: € 0.00
A16: Oktober | B16: =SUMIFS(Buchungen!$E$7:$E$150,Buchungen!$A$7:$A$150,">="&DATE($B$3,10,1),Buchungen!$A$7:$A$150,"<"&EDATE(DATE($B$3,10,1),1)) -> € 0.00 | C16: =SUMIFS(Buchungen!$F$7:$F$150,Buchungen!$A$7:$A$150,">="&DATE($B$3,10,1),Buchungen!$A$7:$A$150,"<"&EDATE(DATE($B$3,10,1),1)) -> € 0.00 | D16: € 0.00
A17: November | B17: =SUMIFS(Buchungen!$E$7:$E$150,Buchungen!$A$7:$A$150,">="&DATE($B$3,11,1),Buchungen!$A$7:$A$150,"<"&EDATE(DATE($B$3,11,1),1)) -> € 0.00 | C17: =SUMIFS(Buchungen!$F$7:$F$150,Buchungen!$A$7:$A$150,">="&DATE($B$3,11,1),Buchungen!$A$7:$A$150,"<"&EDATE(DATE($B$3,11,1),1)) -> € 0.00 | D17: € 0.00
A18: Dezember | B18: =SUMIFS(Buchungen!$E$7:$E$150,Buchungen!$A$7:$A$150,">="&DATE($B$3,12,1),Buchungen!$A$7:$A$150,"<"&EDATE(DATE($B$3,12,1),1)) -> € 0.00 | C18: =SUMIFS(Buchungen!$F$7:$F$150,Buchungen!$A$7:$A$150,">="&DATE($B$3,12,1),Buchungen!$A$7:$A$150,"<"&EDATE(DATE($B$3,12,1),1)) -> € 0.00 | D18: € 0.00
A19: Gesamt | B19: =SUM(B7:B18) -> € 10,080.50 | C19: =SUM(C7:C18) -> € 5,058.59 | D19: =SUM(D7:D18) -> € 5,021.91
